bitfinex/quotes_BTCUSD_20250730
["timestamp","ask_amount","ask_price","bid_price","bid_amount"]
[1753901148147,0.34,117650.0,117630.0,0.1146773]
[1753901148332,0.34,117650.0,117640.0,0.13804]
[1753901148567,0.2899,117650.0,117640.0,0.13804]
[1753901148787,0.33869862,117650.0,117640.0,0.13804]
[1753901149020,0.33869855,117650.0,117640.0,0.14104]
[1753901149237,0.3217,117650.0,117640.0,0.14504]
[1753901149449,0.2899,117650.0,117640.0,0.14504]
[1753901149645,0.2899,117650.0,117640.0,0.14104]
[1753901150156,0.2899,117650.0,117640.0,0.14304]
[1753901150412,0.2899,117650.0,117640.0,0.14004]
[1753901150891,0.2899,117650.0,117640.0,0.14104]
[1753901152006,0.2899,117650.0,117640.0,0.6202007]
[1753901152208,0.2899,117650.0,117640.0,0.64807558]
[1753901152432,0.00849711,117680.0,117640.0,0.61637558]
[1753901152638,5.0,117670.0,117640.0,0.64807558]
[1753901152813,5.01699574,117670.0,117640.0,0.2572173]
[1753901153040,0.34,117650.0,117640.0,0.2255173]
[1753901153457,0.34,117650.0,117640.0,0.2235173]
[1753901154067,0.0321,117660.0,117640.0,0.2235173]
[1753901154185,0.34,117650.0,117640.0,0.2225173]
[1753901154587,0.34,117650.0,117640.0,0.2245173]
[1753901155255,0.34,117650.0,117640.0,0.14004]
[1753901155672,0.34,117650.0,117640.0,0.14104]
[1753901156658,0.34,117650.0,117640.0,0.13904]
[1753901157541,0.34,117650.0,117640.0,0.001]
[1753901157542,0.60719782,117650.0,117640.0,0.001]
[1753901157749,0.60719775,117650.0,117640.0,0.14096]
[1753901158011,0.7771935,117650.0,117640.0,0.14096]
[1753901158200,5.79299488,117650.0,117640.0,0.14096]
[1753901159032,1.50696948,117650.0,117640.0,0.003]
[1753901159176,7.22365051,117650.0,117640.0,0.003]
[1753901159375,6.5706239,117630.0,117620.0,0.00048613]
[1753901159637,6.6626012,117630.0,117620.0,0.00048613]
[1753901159806,6.8005612,117630.0,117620.0,0.00048613]
[1753901159960,1.8005612,117630.0,117620.0,0.00048613]
[1753901160337,6.6626012,117630.0,117620.0,0.00048613]
[1753901160552,6.8005612,117630.0,117620.0,0.00048613]
[1753901161015,5.90474292,117630.0,117620.0,0.00048613]
[1753901161250,6.24270292,117630.0,117620.0,0.00048613]
[1753901161433,6.19151292,117630.0,117620.0,0.00048613]
[1753901161815,6.5523712,117630.0,117620.0,0.00048613]
[1753901162014,6.19151292,117630.0,117620.0,0.00048613]
[1753901162416,6.18301205,117630.0,117620.0,0.00048613]
[1753901162617,5.77278632,117630.0,117620.0,0.00048613]
[1753901162816,6.17031408,117630.0,117620.0,0.00048613]
[1753901163068,5.65382798,117630.0,117620.0,0.00048613]
[1753901163269,5.66232906,117630.0,117620.0,0.00048613]
[1753901163473,5.78328704,117630.0,117620.0,0.00048613]
[1753901163670,5.66232899,117630.0,117620.0,0.00048613]
[1753901163945,5.97031357,117630.0,117620.0,0.00048613]
[1753901164168,6.35577134,117630.0,117620.0,0.00048613]
[1753901164779,6.54827134,117630.0,117620.0,0.00048613]
[1753901165507,6.55577134,117630.0,117620.0,0.00048613]
[1753901166062,6.41781134,117630.0,117620.0,0.00048613]
[1753901166293,6.04566263,117630.0,117620.0,0.00048613]
[1753901166462,6.03716184,117630.0,117620.0,0.00048613]
[1753901166657,5.89843675,117630.0,117620.0,0.00048613]
[1753901166874,5.86713675,117630.0,117620.0,0.00048613]
[1753901167067,6.05416307,117630.0,117620.0,0.00048613]
[1753901167338,6.01359726,117630.0,117620.0,0.00048613]
[1753901167562,5.02100065,117630.0,117620.0,0.00048613]
[1753901167757,5.3780026,117630.0,117620.0,0.00048613]
[1753901168410,5.40660253,117630.0,117620.0,0.00048613]
[1753901168700,5.3505,117630.0,117620.0,0.00048613]
[1753901168932,0.003,117630.0,117620.0,0.42504441]
[1753901169399,0.003,117630.0,117620.0,0.56300441]
[1753901169614,0.003,117630.0,117620.0,0.20214613]
[1753901170251,0.34,117640.0,117620.0,0.20214613]
[1753901170467,0.34,117630.0,117620.0,0.61548171]
[1753901170698,0.34,117630.0,117620.0,0.25462343]
[1753901170920,0.34,117630.0,117620.0,0.17004613]
[1753901171131,0.341,117630.0,117620.0,0.03208613]
[1753901171348,0.341,117630.0,117620.0,0.00048613]
[1753901171349,6.25740488,117630.0,117620.0,0.00048613]
[1753901171567,6.7372312,117630.0,117620.0,0.00048613]
[1753901171799,6.7372312,117630.0,117620.0,0.00248613]
[1753901172015,6.7884212,117630.0,117620.0,0.00248613]
[1753901172229,6.7884212,117630.0,117620.0,0.00448613]
[1753901172452,6.8134212,117630.0,117620.0,0.00448613]
[1753901172696,6.8134212,117630.0,117620.0,0.00248613]
[1753901172911,0.35,117610.0,117600.0,6e-05]
[1753901173147,6.59281845,117610.0,117600.0,0.00010861]
[1753901173587,6.43675556,117610.0,117600.0,0.00010861]
[1753901173799,6.94612831,117610.0,117600.0,0.00010861]
[1753901174691,6.44175556,117610.0,117600.0,0.00010861]
[1753901175127,6.45920458,117610.0,117600.0,0.00010861]
[1753901176433,6.96857733,117610.0,117600.0,0.00010861]
[1753901176657,6.91738733,117610.0,117600.0,0.00010861]
[1753901177341,6.40801458,117610.0,117600.0,0.00010861]
[1753901177547,6.20801458,117610.0,117600.0,0.00010861]
[1753901177986,6.71738733,117610.0,117600.0,0.00010861]
[1753901178197,6.81389574,117610.0,117600.0,0.00010861]
[1753901178405,6.79353733,117610.0,117600.0,0.00010861]
[1753901178768,1.79353733,117610.0,117600.0,0.00010861]
[1753901178980,6.45619433,117610.0,117600.0,0.00010861]
[1753901179190,6.65619433,117610.0,117600.0,0.00010861]
[1753901179389,6.81911433,117610.0,117600.0,0.00010861]
[1753901179825,6.58080447,117610.0,117600.0,0.00010861]
[1753901180025,6.78080447,117610.0,117600.0,0.00010861]
[1753901181687,6.77330447,117610.0,117600.0,0.00010861]
[1753901182291,6.63538447,117610.0,117600.0,0.00010861]
[1753901182470,6.77330447,117610.0,117600.0,0.00010861]
[1753901184032,6.98661694,117610.0,117600.0,0.00010861]
[1753901184201,7.01911694,117610.0,117600.0,0.00010861]
[1753901184427,2.01911694,117610.0,117600.0,0.00010861]
[1753901184635,7.01911694,117610.0,117600.0,0.00010861]
[1753901185426,2.01911694,117610.0,117600.0,0.00010861]
[1753901185598,7.01911694,117610.0,117600.0,0.00010861]
[1753901185976,7.51911694,117610.0,117600.0,0.00010861]
[1753901186454,2.51911694,117610.0,117600.0,0.00010861]
[1753901186607,7.51161694,117610.0,117600.0,0.00010861]
[1753901187014,7.51911694,117610.0,117600.0,0.00010861]
[1753901188460,7.00974419,117610.0,117600.0,0.00010861]
[1753901188711,7.51911694,117610.0,117600.0,0.00010861]
[1753901189620,7.31907694,117610.0,117600.0,0.00010861]
[1753901189944,7.29407694,117610.0,117600.0,0.00010861]
[1753901190239,7.28076447,117610.0,117600.0,0.00010861]
[1753901190869,7.48076447,117610.0,117600.0,0.00010861]
[1753901191187,7.50576447,117610.0,117600.0,0.00010861]
[1753901192253,7.52612288,117610.0,117600.0,0.00010861]
[1753901192508,2.52612288,117610.0,117600.0,0.00010861]
[1753901192679,7.52612288,117610.0,117600.0,0.00010861]
[1753901192891,5.53564669,117560.0,117550.0,0.032]
[1753901193127,5.81161813,117560.0,117550.0,0.032]
[1753901193342,5.80311206,117560.0,117540.0,0.09950861]
[1753901193546,5.64149097,117550.0,117540.0,0.09860861]
[1753901193756,5.66744606,117550.0,117540.0,0.09860861]
[1753901193971,5.82908049,117550.0,117540.0,0.03074586]
[1753901194378,5.82908049,117550.0,117540.0,0.00014586]
[1753901194586,5.6589397,117550.0,117540.0,0.00014586]
[1753901194796,5.84609401,117550.0,117540.0,0.00014586]
[1753901194999,5.83758743,117550.0,117540.0,0.00014586]
[1753901195242,5.65993999,117550.0,117540.0,0.00114586]
[1753901195440,5.668447,117550.0,117540.0,0.03364586]
[1753901195643,5.83858736,117550.0,117540.0,0.03364586]
[1753901195956,5.87825142,117550.0,117540.0,0.03464586]
[1753901196374,5.86974462,117550.0,117540.0,0.03464586]
[1753901196624,5.86974462,117550.0,117540.0,0.00214586]
[1753901197060,6.84837862,117550.0,117540.0,0.00214586]
[1753901197287,6.06972462,117550.0,117540.0,0.00214586]
[1753901197503,6.08304311,117550.0,117540.0,0.00214586]
[1753901197718,1.44359711,117550.0,117540.0,0.00214586]
[1753901197935,6.44359711,117550.0,117540.0,0.00214586]
[1753901198160,6.44259711,117550.0,117540.0,0.00014586]
[1753901198614,6.44359711,117550.0,117540.0,0.00114586]
[1753901199097,6.44459711,117550.0,117540.0,0.00114586]
[1753901199537,6.80515111,117550.0,117540.0,0.00114586]
[1753901199761,6.44459711,117550.0,117540.0,0.00114586]
[1753901200440,1.23178475,117530.0,117520.0,0.0002]
[1753901200652,6.82215605,117530.0,117520.0,0.00024859]
[1753901201503,6.77100605,117530.0,117520.0,0.00024859]
[1753901201712,6.77200605,117530.0,117520.0,0.00424859]
[1753901202350,6.77200605,117530.0,117520.0,0.00624859]
[1753901202784,7.27200605,117530.0,117520.0,0.00624859]
[1753901202997,7.29236446,117530.0,117520.0,0.00624859]
[1753901203954,6.15626661,117510.0,117500.0,0.0002]
[1753901204170,6.76417791,117510.0,117500.0,0.0006848]
[1753901204605,6.40362391,117510.0,117500.0,0.0006848]
[1753901204820,6.76417791,117510.0,117500.0,0.0006848]
[1753901205258,6.77750069,117510.0,117500.0,0.0006848]
[1753901205476,6.8018591,117510.0,117500.0,0.0016848]
[1753901205686,6.78150069,117510.0,117500.0,0.0016848]
[1753901206114,6.56448138,117510.0,117500.0,0.0016848]
[1753901206331,6.58150069,117510.0,117500.0,0.0016848]
[1753901206520,7.08150069,117510.0,117500.0,0.0016848]
[1753901207008,5.81752627,117500.0,117490.0,1e-08]
[1753901207212,5.81752627,117500.0,117490.0,0.00014536]
[1753901207213,6.76539757,117500.0,117490.0,0.00014536]
[1753901207496,6.76861757,117500.0,117490.0,0.00014536]
[1753901207752,6.74361757,117500.0,117490.0,0.00014536]
[1753901207968,6.79421857,117500.0,117490.0,0.00014536]
[1753901208178,6.84357698,117500.0,117490.0,0.00100001]
[1753901208380,6.84357698,117500.0,117470.0,4e-05]
[1753901208381,5.80021456,117480.0,117470.0,4e-05]
[1753901208590,6.38308586,117480.0,117470.0,4e-05]
[1753901208797,6.40344427,117480.0,117470.0,4e-05]
[1753901209015,6.41677081,117480.0,117470.0,4e-05]
[1753901209799,6.45530031,117460.0,117440.0,0.00043028]
[1753901210016,6.28935635,117450.0,117440.0,0.00043028]
[1753901210245,6.51171365,117450.0,117440.0,0.00043028]
[1753901210465,6.53207206,117450.0,117440.0,0.00043028]
[1753901210684,6.55707206,117450.0,117440.0,0.00043028]
[1753901210920,6.58316914,117450.0,117440.0,0.00043028]
[1753901211148,6.58331458,117450.0,117440.0,0.00043028]
[1753901211594,6.22272058,117450.0,117440.0,0.00043028]
[1753901212028,6.26462058,117450.0,117440.0,0.00043028]
[1753901212257,5.87366658,117450.0,117440.0,0.00043028]
[1753901212482,5.67882658,117450.0,117440.0,0.00043028]
[1753901212689,6.15786217,117450.0,117440.0,0.00043028]
[1753901212907,6.03335257,117450.0,117440.0,0.00043028]
[1753901213347,6.14528355,117450.0,117440.0,0.00043028]
[1753901213568,6.02485257,117450.0,117440.0,0.00043028]
[1753901213782,6.16273257,117450.0,117440.0,0.00043028]
[1753901214211,6.19563257,117450.0,117440.0,0.00043028]
[1753901214650,6.22485257,117450.0,117440.0,0.00043028]
[1753901214899,5.88990857,117450.0,117440.0,0.00043028]
[1753901215115,6.38830257,117450.0,117440.0,0.00043028]
[1753901215980,6.38834257,117450.0,117440.0,0.00043028]
[1753901216193,6.25046257,117450.0,117440.0,0.00043028]
[1753901216401,6.38834257,117450.0,117440.0,0.00043028]
[1753901216632,6.35379759,117450.0,117440.0,0.00043028]
[1753901216838,6.21591759,117450.0,117440.0,0.00043028]
[1753901217060,6.15375773,117450.0,117440.0,0.03143028]
[1753901217503,6.16269264,117450.0,117440.0,0.03143028]
[1753901218420,5.49401321,117450.0,117440.0,0.03143028]
[1753901218682,5.13656397,117450.0,117440.0,0.06433028]
[1753901218921,5.45471982,117450.0,117440.0,0.06433028]
[1753901219764,5.37024252,117450.0,117440.0,0.06433028]
[1753901220220,5.37024252,117450.0,117440.0,0.42488428]
[1753901220221,0.00414544,117450.0,117440.0,0.42488428]
[1753901220441,0.00414544,117450.0,117440.0,0.06433028]
[1753901220661,0.84314544,117450.0,117440.0,0.06433028]
[1753901220883,0.34314544,117450.0,117440.0,0.06433028]
[1753901221105,0.50114544,117450.0,117420.0,0.32492428]
[1753901221339,0.50214544,117450.0,117440.0,0.001]
[1753901221833,0.00214544,117450.0,117440.0,0.001]
[1753901222055,0.00214544,117450.0,117440.0,0.361554]
[1753901222272,0.50014544,117450.0,117440.0,0.360554]
[1753901222478,0.50014544,117450.0,117440.0,0.4450313]
[1753901222700,0.50114544,117450.0,117440.0,0.4450313]
[1753901223176,0.49714544,117450.0,117440.0,0.4450313]
[1753901223620,0.50199944,117450.0,117440.0,0.4450313]
[1753901224064,0.50199944,117450.0,117440.0,0.6434313]
[1753901224065,0.50099944,117450.0,117440.0,0.6434313]
[1753901224281,0.49999944,117450.0,117440.0,0.1984]
[1753901224496,0.49999944,117450.0,117440.0,0.1994]
[1753901224497,0.50099944,117450.0,117440.0,0.1994]
[1753901224704,0.50199944,117450.0,117440.0,0.2024]
[1753901224912,0.84099944,117450.0,117440.0,0.2014]
[1753901225119,0.84199944,117450.0,117440.0,0.2034]
[1753901228745,6.50405831,117450.0,117440.0,0.005]
[1753901228951,6.74294298,117450.0,117440.0,0.005]
[1753901229161,6.20358965,117450.0,117440.0,0.005]
[1753901229363,6.38238913,117450.0,117440.0,0.005]
[1753901229985,6.41318913,117450.0,117440.0,0.005]
[1753901230413,5.71210404,117450.0,117440.0,0.005]
[1753901230622,5.6264773,117450.0,117440.0,0.005]
[1753901230839,0.001,117450.0,117440.0,0.0667]
[1753901231054,0.01702619,117460.0,117440.0,0.0647]
[1753901231309,0.02553943,117460.0,117440.0,0.16916]
[1753901231520,5.0,117450.0,117440.0,0.0314]
[1753901231742,5.0,117450.0,117440.0,0.17016]
[1753901231974,5.55151368,117450.0,117440.0,0.17116]
[1753901232187,5.543,117450.0,117440.0,0.17116]
[1753901232396,0.343,117450.0,117440.0,0.563114]
[1753901232611,0.34,117450.0,117440.0,0.561114]
[1753901232836,0.34,117450.0,117440.0,0.6455913]
[1753901233057,0.34,117450.0,117440.0,0.2860373]
[1753901233299,0.001,117460.0,117450.0,0.0636]
[1753901233502,0.001,117460.0,117450.0,0.69807338]
[1753901233715,0.001,117460.0,117450.0,0.70445871]
[1753901233944,0.56786275,117510.0,117490.0,0.0316]
[1753901234182,5.34014601,117500.0,117490.0,0.16936]
[1753901234402,0.00014601,117500.0,117490.0,0.529914]
[1753901234626,0.00014601,117500.0,117490.0,0.562314]
[1753901234838,0.00014601,117500.0,117490.0,0.71152669]
[1753901235042,0.00014601,117500.0,117490.0,0.79600399]
[1753901235249,0.00014601,117500.0,117490.0,0.79700399]
[1753901235458,0.00014601,117500.0,117490.0,0.2872373]
[1753901235675,0.00014601,117500.0,117490.0,0.1494773]
[1753901235878,0.00014601,117500.0,117490.0,0.2538373]
[1753901236093,0.00114601,117500.0,117490.0,0.2568373]
[1753901236526,0.00114601,117500.0,117490.0,0.17232]
[1753901237642,0.34114601,117500.0,117490.0,0.17232]
[1753901237851,5.55065606,117500.0,117490.0,0.14472]
[1753901238060,5.56767646,117500.0,117490.0,0.14472]
[1753901238278,5.75491005,117500.0,117490.0,0.14472]
[1753901238516,5.7293796,117500.0,117490.0,0.007]
[1753901238735,5.86340592,117500.0,117490.0,0.007]
[1753901239164,6.40447261,117500.0,117490.0,0.007]
[1753901239600,5.89470592,117500.0,117490.0,0.007]
[1753901239839,5.89370592,117500.0,117490.0,0.004]
[1753901240269,5.89570592,117500.0,117490.0,0.005]
[1753901240476,5.89470592,117500.0,117490.0,0.001]
[1753901240896,5.89470592,117500.0,117490.0,0.002]
[1753901241335,5.89470592,117500.0,117490.0,0.001]
[1753901241577,5.89470592,117500.0,117470.0,0.13768]
[1753901241578,5.54851143,117480.0,117470.0,0.13768]
[1753901241785,0.54,117480.0,117470.0,0.16778]
[1753901242209,0.54,117480.0,117470.0,0.13768]
[1753901242448,5.54,117480.0,117470.0,0.13768]
[1753901243088,5.541,117480.0,117470.0,0.14068]
[1753901243781,0.341,117480.0,117470.0,0.68214669]
[1753901243992,0.341,117480.0,117470.0,0.71444669]
[1753901244218,0.341,117480.0,117470.0,0.20468]
[1753901244650,0.002,117480.0,117470.0,0.79872399]
[1753901244863,0.001,117480.0,117470.0,0.79572399]
[1753901245286,0.34,117490.0,117480.0,0.0329]
[1753901245515,5.0,117490.0,117480.0,0.1172773]
[1753901245721,0.00014601,117500.0,117490.0,0.23592725]
[1753901245937,0.00014601,117500.0,117490.0,0.96781124]
[1753901246804,0.00014601,117500.0,117490.0,0.45804455]
[1753901247013,0.00014601,117500.0,117490.0,0.9763226]
[1753901247430,0.00014601,117500.0,117490.0,0.65994399]
[1753901247647,0.00014601,117500.0,117490.0,0.1173773]
[1753901247857,0.00014601,117500.0,117490.0,0.2550173]
[1753901248077,0.00014601,117500.0,117490.0,0.17054]
[1753901248283,0.00114601,117500.0,117490.0,0.17354]
[1753901248489,0.00214601,117500.0,117490.0,0.80298399]
[1753901248946,0.00214601,117500.0,117490.0,0.97321124]
[1753901249660,0.00214601,117500.0,117490.0,0.9787226]
[1753901249661,0.00114601,117500.0,117490.0,0.9787226]
[1753901249884,0.00114601,117500.0,117490.0,1.0762224]
[1753901250099,0.00114601,117500.0,117490.0,0.96621124]
[1753901250525,0.00114601,117500.0,117490.0,0.79598399]
[1753901251055,0.00114601,117500.0,117490.0,0.62814399]
[1753901251260,0.00214601,117500.0,117490.0,0.2609773]
[1753901251702,0.00214601,117500.0,117490.0,0.43120455]
[1753901251937,0.00214601,117500.0,117490.0,0.98008253]
[1753901252133,0.00214601,117500.0,117490.0,0.98859374]
[1753901252342,0.00214601,117500.0,117490.0,1.00561595]
[1753901252547,0.00214601,117500.0,117490.0,1.09860373]
[1753901252795,0.00214601,117500.0,117490.0,1.48105275]
[1753901253369,0.08165609,117550.0,117510.0,0.18720565]
[1753901253586,5.0,117540.0,117520.0,0.76667128]
[1753901253805,5.0,117540.0,117520.0,0.76454399]
[1753901254034,5.0,117540.0,117520.0,0.93472707]
[1753901254245,0.42214288,117550.0,117530.0,0.68206311]
[1753901254246,0.01428013,117550.0,117530.0,0.68206311]
[1753901254466,0.01428013,117550.0,117540.0,0.76200399]
[1753901254706,0.01428013,117550.0,117540.0,0.62444399]
[1753901254929,0.05782076,117500.0,117490.0,0.006]
[1753901255171,0.365,117430.0,117410.0,0.00065021]
[1753901255423,0.365,117430.0,117380.0,0.2102]
[1753901255424,5.34851803,117390.0,117380.0,0.2102]
[1753901255695,0.00851919,117380.0,117360.0,0.006]
[1753901255944,0.34,117380.0,117360.0,0.006]
[1753901256198,0.56094339,117380.0,117370.0,0.14332]
[1753901256439,0.025,117370.0,117350.0,0.07611665]
[1753901256645,0.025,117370.0,117360.0,0.1432]
[1753901256866,0.025,117370.0,117340.0,0.0002]
[1753901257099,0.025,117370.0,117360.0,0.14332]
[1753901257348,0.025,117370.0,117340.0,0.00034601]
[1753901257605,0.05,117370.0,117360.0,0.14328]
[1753901257884,0.05,117370.0,117360.0,0.1434]
[1753901258123,0.56040129,117370.0,117360.0,0.1434]
[1753901258357,0.56040129,117370.0,117360.0,0.14336]
[1753901258597,0.39,117370.0,117360.0,0.01163585]
[1753901258835,0.34,117360.0,117340.0,0.00213056]
[1753901259061,0.366,117370.0,117360.0,0.14832]
[1753901259297,0.366,117370.0,117360.0,0.65940963]
[1753901259542,0.341,117370.0,117360.0,0.14832]
[1753901259808,5.5619606,117370.0,117360.0,0.006]
[1753901260036,5.67143811,117370.0,117360.0,0.006]
[1753901260255,5.66291834,117370.0,117360.0,0.14928]
[1753901260706,5.65439821,117370.0,117360.0,0.006]
[1753901260935,5.64587859,117370.0,117360.0,0.006]
[1753901261165,5.64587859,117370.0,117360.0,0.14928]
[1753901261403,5.64587859,117370.0,117360.0,0.14924]
[1753901261646,5.66191777,117370.0,117360.0,0.14324]
[1753901261884,5.66191777,117370.0,117340.0,0.51108963]
[1753901261885,5.22042652,117360.0,117340.0,0.51108963]
[1753901262119,5.22042652,117360.0,117330.0,0.52905217]
[1753901262120,0.34,117340.0,117330.0,0.52905217]
[1753901262347,0.53544486,117340.0,117330.0,0.01796254]
[1753901262562,0.365,117340.0,117330.0,0.67229217]
[1753901262750,0.53544486,117340.0,117330.0,0.01796254]
[1753901263243,0.61992216,117340.0,117330.0,0.01796254]
[1753901263459,0.4494773,117340.0,117330.0,0.67221217]
[1753901263892,0.34,117340.0,117330.0,0.52905217]
[1753901264109,0.025,117340.0,117330.0,0.67237217]
[1753901264739,0.025,117340.0,117330.0,0.52905217]
[1753901264957,0.026,117340.0,117330.0,0.67629217]
[1753901265392,0.026,117340.0,117330.0,0.02196254]
[1753901265841,0.366,117340.0,117330.0,0.53305217]
[1753901266063,0.366,117340.0,117330.0,0.67617217]
[1753901266279,0.366,117340.0,117330.0,0.02196254]
[1753901266505,0.4514773,117340.0,117330.0,0.02196254]
[1753901266752,0.4514773,117340.0,117330.0,0.67621217]
[1753901267174,0.4514773,117340.0,117330.0,0.67613217]
[1753901267394,0.027,117340.0,117330.0,0.67613217]
[1753901267803,0.367,117340.0,117330.0,0.16504254]
[1753901268094,0.367,117340.0,117330.0,0.67613217]
[1753901268293,0.342,117340.0,117330.0,0.73140019]
[1753901268477,0.342,117340.0,117330.0,0.70423217]
[1753901268723,0.342,117340.0,117330.0,0.53055217]
[1753901268939,0.002,117340.0,117330.0,0.67371217]
[1753901269793,0.002,117340.0,117330.0,0.68223513]
[1753901270225,0.002,117340.0,117330.0,0.70391217]
[1753901270608,0.002,117340.0,117330.0,0.87437155]
[1753901270751,0.002,117340.0,117330.0,0.88289437]
[1753901270956,0.002,117340.0,117330.0,0.70391217]
[1753901273386,0.002,117340.0,117330.0,0.70347217]
[1753901273738,0.002,117340.0,117330.0,0.89097726]
[1753901273941,0.002,117340.0,117330.0,0.89950001]
[1753901274196,0.002,117340.0,117330.0,0.89949986]
[1753901274431,0.002,117340.0,117330.0,0.90802239]
[1753901275164,0.002,117340.0,117330.0,0.89949993]
[1753901275435,0.3888,117360.0,117330.0,0.89949993]
[1753901275746,0.3888,117360.0,117350.0,0.51108963]
[1753901275865,0.3888,117360.0,117350.0,0.65364963]
[1753901276294,0.3638,117360.0,117350.0,0.65356963]
[1753901276607,0.3888,117360.0,117350.0,0.65356963]
[1753901277017,0.3898,117360.0,117350.0,0.65456963]
[1753901277219,0.3898,117360.0,117350.0,0.001]
[1753901277587,0.001,117360.0,117350.0,0.65444963]
[1753901277790,0.001,117360.0,117350.0,0.91778676]
[1753901278036,0.001,117360.0,117350.0,0.88314362]
[1753901278241,0.002,117360.0,117350.0,1.00062092]
[1753901278689,0.002,117360.0,117350.0,0.85826092]
[1753901278933,0.001,117360.0,117350.0,1.00058092]
[1753901279162,0.002,117360.0,117350.0,0.2654973]
[1753901279395,0.001,117360.0,117350.0,0.51608963]
[1753901279646,0.3648,117360.0,117350.0,0.65852963]
[1753901279887,0.3648,117360.0,117350.0,0.66348963]
[1753901279888,0.3658,117360.0,117350.0,0.66348963]
[1753901280680,0.0258,117360.0,117350.0,0.66348963]
[1753901281085,0.3658,117360.0,117350.0,0.66348963]
[1753901281598,0.3658,117360.0,117350.0,0.52108963]
[1753901281839,0.3908,117360.0,117350.0,0.52108963]
[1753901282040,0.3908,117360.0,117350.0,0.66332963]
[1753901282641,5.69013743,117360.0,117350.0,0.01]
[1753901282850,5.69865763,117360.0,117350.0,0.01]
[1753901283153,5.5393773,117360.0,117350.0,0.52108963]
[1753901283399,5.5081773,117360.0,117350.0,0.52108963]
[1753901283625,5.72483417,117360.0,117350.0,0.005]
[1753901283833,5.72583417,117360.0,117350.0,0.006]
[1753901284048,5.71731375,117360.0,117350.0,0.006]
[1753901284240,5.91731375,117360.0,117350.0,0.006]
[1753901284679,0.91731375,117360.0,117350.0,0.006]
[1753901284890,5.91631375,117360.0,117350.0,0.001]
[1753901285514,5.90779311,117360.0,117350.0,0.001]
[1753901285723,6.05931375,117360.0,117350.0,0.002]
[1753901285942,6.27791277,117360.0,117350.0,0.002]
[1753901286373,5.83968898,117340.0,117330.0,0.01546254]
[1753901286583,5.98264898,117340.0,117330.0,0.01546254]
[1753901286833,6.06712628,117340.0,117330.0,0.01546254]
[1753901287677,6.08046596,117340.0,117330.0,0.01546254]
[1753901288232,6.08796596,117340.0,117330.0,0.01546254]
[1753901288642,6.08796596,117340.0,117330.0,0.01646254]
[1753901289027,0.1789822,117330.0,117320.0,0.10024]
[1753901289243,6.5306732,117330.0,117320.0,0.10036456]
[1753901289453,5.9146595,117330.0,117320.0,0.09182838]
[1753901289884,5.9401963,117330.0,117320.0,0.0832922]
[1753901290097,5.81109381,117330.0,117320.0,0.0832922]
[1753901290300,5.81109381,117330.0,117320.0,0.07475602]
[1753901290301,5.94762699,117330.0,117320.0,0.07475602]
[1753901290724,5.95262699,117330.0,117320.0,0.06721984]
[1753901290942,5.88446294,117330.0,117320.0,0.06721984]
[1753901291422,5.89298583,117330.0,117320.0,0.06721984]
[1753901291751,5.7444435,117330.0,117320.0,0.06721984]
[1753901291989,6.08363126,117330.0,117320.0,0.06721984]
[1753901292224,1.05806382,117330.0,117320.0,0.06721984]
[1753901292451,6.24954107,117330.0,117320.0,0.06721984]
[1753901292664,6.21910033,117330.0,117320.0,0.06721984]
[1753901293552,6.22762308,117330.0,117320.0,0.06721984]
[1753901293788,6.21910033,117330.0,117320.0,0.06721984]
[1753901294011,6.25730033,117330.0,117320.0,0.06721984]
[1753901294682,6.65554745,117330.0,117320.0,0.02878595]
[1753901294902,6.11414033,117330.0,117320.0,0.02024509]
[1753901295165,6.63022996,117330.0,117320.0,0.02124509]
[1753901295387,5.66899746,117320.0,117310.0,0.001]
[1753901295601,5.84067476,117320.0,117310.0,0.00104873]
[1753901295726,6.00801271,117310.0,117300.0,0.00050373]
[1753901295937,6.09249001,117310.0,117300.0,0.00055199]
[1753901296757,5.75432798,117300.0,117290.0,0.00464201]
[1753901296956,5.87130528,117300.0,117290.0,0.00464201]
[1753901297585,5.85203711,117300.0,117290.0,0.00464201]
[1753901298394,5.85403711,117300.0,117290.0,0.00564201]
[1753901298613,5.88453711,117300.0,117290.0,0.00564201]
[1753901299286,5.89788226,117300.0,117290.0,0.00564201]
[1753901299729,5.92305725,117300.0,117290.0,0.00564201]
[1753901300154,5.9107121,117300.0,117290.0,0.00564201]
[1753901301462,5.8802121,117300.0,117290.0,0.00564201]
[1753901302348,5.30688412,117300.0,117290.0,0.00564201]
[1753901302573,5.18920868,117300.0,117290.0,0.00564201]
[1753901302812,5.18068412,117300.0,117290.0,0.00564201]
[1753901303039,5.53773339,117300.0,117290.0,0.00564201]
[1753901303251,5.52068412,117300.0,117290.0,0.00564201]
[1753901303478,5.53773332,117300.0,117290.0,0.00564201]
[1753901303696,5.72528637,117300.0,117290.0,0.00564201]
[1753901303923,5.89053703,117300.0,117290.0,0.00564201]
[1753901304429,5.68273368,117300.0,117290.0,0.00564201]
[1753901304662,5.7242089,117300.0,117290.0,0.00564201]
[1753901304948,5.72420868,117300.0,117290.0,0.00564201]
[1753901305187,0.73273339,117300.0,117290.0,0.00564201]
[1753901305440,5.9117613,117300.0,117290.0,0.00564201]
[1753901305681,5.90323703,117300.0,117290.0,0.00564201]
[1753901306674,0.2363689,117290.0,117280.0,0.0362951]
[1753901306888,5.3208462,117290.0,117280.0,0.0362951]
[1753901307089,5.31232055,117290.0,117280.0,0.0362951]
[1753901307924,5.15032854,117290.0,117280.0,0.0362951]
[1753901308125,5.32284606,117290.0,117280.0,0.0372951]
[1753901309311,5.25312091,117290.0,117280.0,0.0372951]
[1753901309628,5.26164642,117290.0,117280.0,0.0372951]
[1753901309837,5.32920606,117290.0,117280.0,0.0372951]
[1753901310246,5.32068055,117290.0,117280.0,0.0372951]
[1753901311110,0.3570524,117280.0,117250.0,0.53242473]
[1753901311315,5.0,117270.0,117250.0,0.11155795]
[1753901311649,5.0,117270.0,117250.0,0.62264758]
[1753901312013,5.0,117270.0,117250.0,0.60131248]
[1753901312453,5.0,117270.0,117250.0,0.66318863]
[1753901312610,5.001,117270.0,117260.0,0.51108963]
[1753901312816,0.001,117270.0,117260.0,0.36207672]
[1753901313032,0.001,117270.0,117260.0,0.39307672]
[1753901313269,0.001,117270.0,117260.0,0.04844902]
[1753901313509,0.001,117270.0,117260.0,0.41265775]
[1753901313733,0.001,117270.0,117260.0,0.41052574]
[1753901314182,0.54,117280.0,117260.0,0.44352574]
[1753901314402,0.54,117280.0,117270.0,0.44979672]